fUST/lending_fUST_20250406
["ID","MTS","AMOUNT","RATE_DAILY","PERIOD"]
[357229032,1743922752626,-6721.89415761,0.0003499,30]
[357229033,1743922752652,-2041.92611341,0.00035,120]
[357229034,1743922752677,-200.0,0.00035,120]
[357229035,1743922752702,-5300.0,0.00035,30]
[357229036,1743922752727,-31233.97754363,0.00035,30]
[357229037,1743922752752,-200.0,0.00035523,120]
[357229038,1743922752777,-200.0,0.00035558,120]
[357229039,1743922752802,-189.63,0.000358,30]
[357229040,1743922752826,-483.71789787,0.00036,30]
[357229041,1743922752851,-200.0,0.00036,120]
[357229042,1743922752996,-252.52,0.00036,30]
[357229043,1743922753022,-434.28,0.00036,30]
[357229044,1743922753048,-219.72051982,0.000362,98]
[357229045,1743922753073,-219.72051979,0.000362,98]
[357229046,1743922753098,-219.72051979,0.000362,98]
[357229047,1743922753122,-219.72051979,0.000362,98]
[357229048,1743922753147,-870.68,0.000367,30]
[357229049,1743922753173,-200.0,0.00036781,120]
[357229050,1743922753197,-3616.82263591,0.00036898,120]
[357229051,1743922753221,-150.0,0.000375,112]
[357229052,1743922753246,-200.0,0.00037609,120]
[357229053,1743922753271,-189.63,0.000377,30]
[357229054,1743922753297,-200.0,0.0003775,120]
[357229055,1743922753322,-1000.0,0.00038,120]
[357229056,1743922753347,-200.0,0.00038,120]
[357229057,1743922753372,-5000.0,0.00038,120]
[357229058,1743922753397,-434.28,0.000381,30]
[357229059,1743922753422,-252.52,0.000381,30]
[357229060,1743922753446,-1033.09935331,0.00038356,90]
[357229061,1743922753472,-153.2,0.000385,120]
[357229062,1743922753499,-200.0,0.00038565,120]
[357229063,1743922753525,-200.0,0.00038778,120]
[357229064,1743922753550,-40000.0,0.0003896,40]
[357229065,1743922753575,-235.87468815,0.00039,120]
[357229066,1743922753599,-5000.0,0.00039,120]
[357229067,1743922753624,-870.68,0.00039,30]
[357229068,1743922753649,-222.1560723,0.00039109,30]
[357229069,1743922753675,-213.2113689,0.00039109,30]
[357229070,1743922753700,-213.2113689,0.00039109,30]
[357229071,1743922753724,-548.3615734,0.00039178,30]
[357229072,1743922753750,-200.0,0.00039599,120]
[357229073,1743922753775,-200.0,0.00039864,120]
[357229074,1743922753799,-792.29050658,0.0003989,120]
[357229075,1743922753825,-219.72051979,0.000399,119]
[357229076,1743922753852,-213.2113689,0.00039931,30]
[357229077,1743922753876,-213.2113689,0.00039931,30]
[357229078,1743922753901,-213.2113689,0.00039931,30]
[357229079,1743922753925,-213.2113689,0.00039931,30]
[357229080,1743922753948,-650.41078306,0.0004,120]
[357229081,1743922753973,-555.69648446,0.0004,120]
[357229082,1743922753997,-689.03634581,0.0004,120]
[357229083,1743922754022,-200.0,0.0004,120]
[357229084,1743922754048,-506.65575299,0.0004,120]
[357229085,1743922754073,-1829037.57949933,0.0004,30]
[357229087,1743922759585,-213.2113689,0.00039109,30]
[357229088,1743922759613,-78436.21966022,0.0004,30]
[357229089,1743922759639,-970671.95531577,0.0004,30]
[357229090,1743922759667,-399795.57355148,0.0004,30]
[357229091,1743922759696,-550883.04010363,0.0004,30]
[357229092,1743922764588,-2000000.0,0.0004,30]
[357229093,1743922769838,-2000000.0,0.0004,30]
[357229094,1743922780195,500.0,0.00045648,120]
[357229095,1743922785248,-435.34,0.000335,30]
[357229096,1743922785278,-435.34,0.000371,30]
[357229097,1743922785307,-1526640.12631606,0.0004,30]
[357229098,1743922785334,-220066.57197323,0.0004,30]
[357229099,1743922785375,-252422.62171071,0.0004,30]
[357229100,1743922789230,-24234.95830069,0.0004,30]
[357229101,1743922789257,-863566.78823426,0.0004,30]
[357229102,1743922789284,-2836.0,0.0004,120]
[357229103,1743922789312,-563592.6660112,0.0004,30]
[357229104,1743922789340,-189.63,0.0004,30]
[357229105,1743922789366,-4763.92016972,0.0004,60]
[357229106,1743922789392,-4758.92016971,0.0004,90]
[357229107,1743922789418,-6345.22689295,0.0004,120]
[357229108,1743922789445,-980.85,0.0004,120]
[357229109,1743922789470,-2429.92911583,0.0004,120]
[357229110,1743922789498,-3115.1257694,0.0004,90]
[357229111,1743922789525,-200.0,0.00040233,120]
[357229112,1743922789551,-1051.89989999,0.00040658,120]
[357229113,1743922789577,-5000.0,0.00041,30]
[357229114,1743922789604,-3814.29175291,0.00041071,30]
[357229115,1743922789634,-1000.0,0.00041095,120]
[357229116,1743922789660,-1000.0,0.00041095,120]
[357229117,1743922789687,-1000.0,0.00041095,120]
[357229118,1743922789712,-1000.0,0.00041095,120]
[357229119,1743922789738,-1000.0,0.00041095,120]
[357229120,1743922789764,-1000.0,0.00041095,120]
[357229121,1743922789791,-1000.0,0.00041095,120]
[357229122,1743922789817,-1000.0,0.00041095,120]
[357229123,1743922789843,-1000.0,0.00041095,120]
[357229124,1743922789868,-1000.0,0.00041095,120]
[357229125,1743922789895,-1000.0,0.00041095,120]
[357229126,1743922789921,-1000.0,0.00041095,120]
[357229127,1743922789949,-1000.0,0.00041095,120]
[357229128,1743922789975,-1000.0,0.00041095,120]
[357229129,1743922790001,-1000.0,0.00041095,120]
[357229130,1743922790028,-1000.0,0.00041095,120]
[357229131,1743922790055,-1000.0,0.00041095,120]
[357229132,1743922790083,-1000.0,0.00041095,120]
[357229133,1743922790110,-1000.0,0.00041095,120]
[357229134,1743922790136,-1000.0,0.00041095,120]
[357229135,1743922790164,-1000.0,0.00041095,120]
[357229136,1743922790192,-1000.0,0.00041095,120]
[357229137,1743922790219,-638.99393889,0.00041095,120]
[357229138,1743922790247,-435.34,0.000411,30]
[357229139,1743922790273,-1000.0,0.00041211,120]
[357229140,1743922790300,-200.0,0.00041223,120]
[357229141,1743922790462,-1250.25329881,0.00041517,120]
[357229142,1743922790492,-200.0,0.00041549,120]
[357229143,1743922790523,-1250.25329881,0.00041617,120]
[357229144,1743922790551,-1250.25329881,0.00041717,120]
[357229145,1743922790578,-1250.25329881,0.00041817,120]
[357229146,1743922790609,-200.0,0.00041827,120]
[357229147,1743922790636,-38025.02020619,0.000419,120]
[357229148,1743922790664,-1250.25329881,0.00041917,120]
[357229149,1743922790693,-200.0,0.00042,120]
[357229150,1743922790720,-100000.0,0.00042,30]
[357229151,1743922790747,-100000.0,0.00042,30]
[357229152,1743922790772,-34039.0,0.00042,30]
[357229153,1743922790798,-65862.0,0.00042,30]
[357229154,1743922790823,-100000.0,0.00042,30]
[357229155,1743922790848,-44068.17304421,0.00042,30]
[357229156,1743922796993,151.0,0.00045648,30]
[357229157,1743922797638,151.0,0.00045648,30]
[357229158,1743922798347,151.0,0.00045648,30]
[357229159,1743922803926,-116.3150788,0.000207,2]
[357229160,1743922803951,-82.5850742,0.000207,2]
[357229161,1743922805361,-16581.82695579,0.00042,30]
[357229162,1743922805390,-38475.0,0.00042,30]
[357229163,1743922805417,-81163.0,0.00042,30]
[357229164,1743922805444,-62925.0,0.00042,30]
[357229165,1743922805473,-100000.0,0.00042,30]
[357229166,1743922805506,-19922.0,0.00042,30]
[357229167,1743922805535,-84062.0,0.00042,30]
[357229168,1743922805566,-3000.0,0.00042,60]
[357229169,1743922805595,-100000.0,0.00042,30]
[357229170,1743922805623,-100000.0,0.00042,30]
[357229171,1743922805651,-100000.0,0.00042,30]
[357229172,1743922805679,-100000.0,0.00042,30]
[357229173,1743922805708,-40008.0,0.00042,30]
[357229174,1743922805737,-150.0,0.00042,120]
[357229175,1743922805765,-674.06474946,0.00042,120]
[357229176,1743922805793,-1250.25329881,0.00042017,120]
[357229177,1743922805821,-1250.25329881,0.00042117,120]
[357229178,1743922805847,-1250.25329881,0.00042217,120]
[357229179,1743922805874,-1250.25329881,0.00042317,120]
[357229180,1743922805900,-1250.25329881,0.00042417,120]
[357229181,1743922805930,-504793.0,0.0004244,30]
[357229182,1743922805958,-24246.37,0.000425,120]
[357229183,1743922805985,-1250.25329881,0.00042517,120]
[357229184,1743922806011,-1250.25329881,0.00042617,120]
[357229185,1743922806036,-1250.25329881,0.00042717,120]
[357229186,1743922806062,-1250.25329881,0.00042817,120]
[357229187,1743922806098,-1250.25329881,0.00042917,120]
[357229188,1743922806122,-1000.0,0.0004297,30]
[357229189,1743922806147,-1000.0,0.0004297,30]
[357229190,1743922806171,-1000.0,0.0004298,30]
[357229191,1743922806196,-1000.0,0.0004298,30]
[357229192,1743922806220,-1000.0,0.0004298,30]
[357229193,1743922806245,-1000.0,0.0004298,30]
[357229194,1743922806271,-1000.0,0.0004299,30]
[357229195,1743922806296,-1000.0,0.0004299,30]
[357229196,1743922806323,-1000.0,0.0004299,30]
[357229197,1743922806348,-1000.0,0.0004299,30]
[357229198,1743922806374,-252.2912778,0.00043,40]
[357229199,1743922806401,-873.29724936,0.00043,30]
[357229200,1743922806426,-156.29413516,0.00043,120]
[357229201,1743922806454,-1250.25329881,0.00043017,120]
[357229202,1743922806481,-1250.25329881,0.00043117,120]
[357229203,1743922806511,-200.0,0.00043216,120]
[357229204,1743922806651,-1250.25329881,0.00043217,120]
[357229205,1743922806678,-253.674,0.00043253,120]
[357229206,1743922806708,-435.34,0.000433,30]
[357229207,1743922806735,-1250.25329881,0.00043317,120]
[357229208,1743922806760,-1250.25329881,0.00043417,120]
[357229209,1743922806788,-1491.26,0.000435,120]
[357229210,1743922806814,-1250.25329881,0.00043517,120]
[357229211,1743922806839,-30000.0,0.0004359,50]
[357229212,1743922806864,-1250.25329881,0.00043617,120]
[357229213,1743922806890,-1250.25329881,0.00043717,120]
[357229214,1743922806914,-39999.0,0.000438,120]
[357229215,1743922806940,-1250.25329881,0.00043817,120]
[357229216,1743922806966,-1000.0,0.00043835,120]
[357229217,1743922806992,-1000.0,0.00043835,120]
[357229218,1743922807017,-1000.0,0.00043835,120]
[357229219,1743922807043,-1000.0,0.00043835,120]
[357229220,1743922807068,-1000.0,0.00043835,120]
[357229221,1743922807093,-1000.0,0.00043835,120]
[357229222,1743922807119,-1000.0,0.00043835,120]
[357229223,1743922807144,-182.50553127,0.00043835,120]
[357229224,1743922807170,-50000.0,0.00043836,30]
[357229225,1743922807197,-30000.0,0.0004386,50]
[357229226,1743922807224,-1250.25329881,0.00043917,120]
[357229227,1743922807251,-1973.77811491,0.00044,30]
[357229228,1743922807279,-200.0,0.00044,120]
[357229229,1743922807305,-5000.0,0.00044,120]
[357229230,1743922807332,-1250.25329881,0.00044017,120]
[357229231,1743922807359,-1250.25329881,0.00044117,120]
[357229232,1743922807386,-1250.25329881,0.00044217,120]
[357229233,1743922807412,-1250.25329881,0.00044317,120]
[357229234,1743922807440,-1250.25329881,0.00044417,120]
[357229235,1743922807467,-1250.25329881,0.00044517,120]
[357229236,1743922807496,-20000.0,0.0004453,50]
[357229237,1743922807524,-1250.25329881,0.00044617,120]
[357229238,1743922807552,-363.01523798,0.00044679,120]
[357229239,1743922807579,-363.07169473,0.00044697,120]
[357229240,1743922807605,-1250.25329881,0.00044717,120]
[357229241,1743922807632,-20000.0,0.0004476,40]
[357229242,1743922807659,-1250.25329881,0.00044817,120]
[357229243,1743922807685,-2027.15,0.00044898,30]
[357229244,1743922807712,-300.0,0.000449,30]
[357229245,1743922807737,-59954.55823081,0.000449,120]
[357229246,1743922807763,-1250.25329881,0.00044917,120]
[357229247,1743922807787,-1300.0,0.00044999,120]
[357229248,1743922807813,-151.0,0.00045,120]
[357229249,1743922807838,-191.81979165,0.00045,120]
[357229250,1743922807863,-3000.0,0.00045,120]
[357229251,1743922807888,-1275.92893142,0.00045,120]
[357229252,1743922807914,-150.53546196,0.00045,120]
[357229253,1743922807940,-2000.0,0.00045,120]
[357229254,1743922807967,-10161.89940273,0.00045,120]
[357229255,1743922807992,-65836.55154561,0.00045,120]
[357229256,1743922808017,-5000.0,0.00045,30]
[357229257,1743922808042,-151.0,0.00045,120]
[357229258,1743922808068,-236.75829492,0.00045,120]
[357229259,1743922808093,-645.54936592,0.00045,120]
[357229260,1743922808118,-20242.17869339,0.00045,120]
[357229261,1743922808143,-179.31099826,0.00045,120]
[357229262,1743922808169,-4999.99999901,0.00045,120]
[357229263,1743922808195,-4999.07638646,0.00045,120]
[357229264,1743922808224,-1250.25329881,0.00045017,120]
[357229265,1743922808251,-1250.25329881,0.00045117,120]
[357229266,1743922808277,-365.69119007,0.00045161,120]
[357229267,1743922808303,-999.0,0.00045205,120]
[357229268,1743922808331,-1250.25329881,0.00045217,120]
[357229269,1743922808358,-1250.25329881,0.00045317,120]
[357229270,1743922808383,-365.63980848,0.00045405,120]
[357229271,1743922808410,-1250.25329881,0.00045417,120]
[357229272,1743922808437,-1088.03151243,0.00045479,120]
[357229273,1743922808464,-1250.25329881,0.00045517,120]
[357229274,1743922808490,-174.13232067,0.000456,100]
[357229275,1743922808520,-1250.25329881,0.00045617,120]
[357229276,1743922808552,-150.08,0.00045648,120]
[357229277,1743922808578,-150.08,0.00045648,120]
[357229278,1743922808605,-150.08,0.00045648,120]
[357229279,1743922808631,-289.56103561,0.00045648,120]
[357229280,1743922808659,-150.08,0.00045648,120]
[357229281,1743922808688,-150.08,0.00045648,120]
[357229282,1743922808717,-150.08,0.00045648,120]
[357229283,1743922808745,-200.88919179,0.00045648,120]
[357229284,1743922808771,-1250.25329881,0.00045717,120]
[357229285,1743922808798,-1250.25329881,0.00045817,120]
[357229286,1743922808825,-227.91519892,0.0004588,30]
[357229287,1743922808855,-1250.25329881,0.00045917,120]
[357229288,1743922808883,-200.0,0.0004599,120]
[357229289,1743922808910,-301.08670546,0.00045999,60]
[357229290,1743922808937,-200.0,0.00046,120]
[357229291,1743922809052,-1063.0,0.00046,120]
[357229292,1743922809084,-388.4514466,0.00046,120]
[357229293,1743922809111,-3744.38125314,0.00046,120]
[357229294,1743922809137,-381.40303204,0.00046,120]
[357229295,1743922809164,-1250.25329881,0.00046017,120]
[357229296,1743922809192,-1250.25329881,0.00046117,120]
[357229297,1743922809221,-201.0732345,0.000462,120]
[357229298,1743922809249,-1250.25329881,0.00046217,120]
[357229299,1743922809277,-157601.26617286,0.000463,40]
[357229300,1743922815679,151.0,0.00045648,30]
[357229301,1743922816307,151.0,0.00045648,30]
[357229302,1743922818506,151.0,0.00045648,30]
[357229303,1743922819257,151.0,0.00045648,30]
[357229304,1743922826481,-9440.36362756,0.00035027,49]
[357229305,1743922826512,-5000.0,0.00035027,48]
[357229306,1743922826540,-5000.0,0.00035027,49]
[357229307,1743922826578,-523218.95705452,0.000463,40]
[357229308,1743922826605,-2200.0,0.000463,30]
[357229309,1743922826636,-1250.25329881,0.00046317,120]
[357229310,1743922826664,-1250.25329881,0.00046417,120]
[357229311,1743922826692,-1250.25329881,0.00046517,120]
[357229312,1743922826721,-1129.551264,0.00046529,30]
[357229313,1743922826747,-306.0,0.00046529,30]
[357229314,1743922826775,-1000.0,0.00046532,120]
[357229315,1743922826804,-1250.25329881,0.00046617,120]
[357229316,1743922826833,-1250.25329881,0.00046717,120]
[357229317,1743922826860,-200.0,0.00046741,120]
[357229318,1743922826888,-1250.25329881,0.00046817,120]
[357229319,1743922826916,-1250.25329881,0.00046917,120]
[357229320,1743922826944,-317.61298829,0.00046922,120]
[357229321,1743922826972,-317.61298829,0.00046929,120]
[357229322,1743922827001,-317.61298829,0.00046951,120]
[357229323,1743922827029,-317.61298829,0.00046983,120]
[357229324,1743922827057,-920.79708126,0.00047,120]
[357229325,1743922827084,-5000.0,0.00047,120]
[357229326,1743922827112,-919.03907219,0.00047,120]
[357229327,1743922827139,-4042.724923,0.00047,30]
[357229328,1743922827165,-185.87029452,0.00047,120]
[357229329,1743922827194,-1250.25329881,0.00047017,120]
[357229330,1743922827222,-1250.25329881,0.00047117,120]
[357229331,1743922827250,-200.0,0.00047209,120]
[357229332,1743922827277,-1250.25329881,0.00047217,120]
[357229333,1743922827305,-1250.25329881,0.00047317,120]
[357229334,1743922827332,-1250.25329881,0.00047417,120]
[357229335,1743922827482,-1250.25329881,0.00047517,120]
[357229336,1743922827511,-1250.25329881,0.00047617,120]
[357229337,1743922827537,-1250.25329881,0.00047717,120]
[357229338,1743922827566,-1021.58995644,0.000478,120]
[357229339,1743922827594,-1250.25329881,0.00047817,120]
[357229340,1743922827619,-2187.9590415,0.000479,120]
[357229341,1743922827647,-1250.25329881,0.00047917,120]
[357229342,1743922827674,-750.0,0.00047999,120]
[357229343,1743922827702,-200.0,0.00048,120]
[357229344,1743922827729,-1063.0,0.00048,120]
[357229345,1743922827756,-1250.25329881,0.00048017,120]
[357229346,1743922827783,-1250.25329881,0.00048117,120]
[357229347,1743922827809,-1250.25329881,0.00048217,120]
[357229348,1743922827836,-1250.25329881,0.00048317,120]
[357229349,1743922827862,-2630.34929369,0.00048398,120]
[357229350,1743922827889,-2189.2275847,0.00048398,120]
[357229351,1743922827915,-1250.25329881,0.00048417,120]
[357229352,1743922827940,-1881.93668829,0.000485,120]
[357229353,1743922827968,-1250.25329881,0.00048517,120]
[357229354,1743922827995,-1250.25329881,0.00048617,120]
[357229355,1743922828022,-1250.25329881,0.00048717,120]
[357229356,1743922828048,-865.22285753,0.000488,120]
[357229357,1743922828073,-281233.561,0.000488,120]
[357229358,1743922828098,-1032.86877318,0.000488,120]
[357229359,1743922828125,-1250.25329881,0.00048817,120]
[357229360,1743922828152,-1250.25329881,0.00048917,120]
[357229361,1743922828179,-1000.0,0.00048999,120]
[357229362,1743922828205,-164.01709541,0.00049,120]
[357229363,1743922828233,-234.65050115,0.00049,120]
[357229364,1743922828260,-5000.0,0.00049,120]
[357229365,1743922828288,-1045.53439055,0.00049,120]
[357229366,1743922828317,-1250.25329881,0.00049017,120]
[357229367,1743922828344,-1250.25329881,0.00049117,120]
[357229368,1743922828371,-1250.25329881,0.00049217,120]
[357229369,1743922828397,-594.09913446,0.00049315,120]
[357229370,1743922828423,-1303.6,0.00049315,120]
[357229371,1743922828450,-1303.6,0.00049315,120]
[357229372,1743922828480,-1303.6,0.00049315,120]
[357229373,1743922828510,-1303.6,0.00049315,120]
[357229374,1743922828538,-1303.6,0.00049315,120]
[357229375,1743922828565,-1303.6,0.00049315,120]
[357229376,1743922828593,-1303.6,0.00049315,120]
[357229377,1743922828619,-1303.6,0.00049315,120]
[357229378,1743922828645,-1303.6,0.00049315,120]
[357229379,1743922828671,-1303.6,0.00049315,120]
[357229380,1743922828698,-1303.6,0.00049315,120]
[357229381,1743922828726,-1303.6,0.00049315,120]
[357229382,1743922828753,-1303.6,0.00049315,120]
[357229383,1743922828780,-1303.6,0.00049315,120]
[357229384,1743922828808,-1303.6,0.00049315,120]
[357229385,1743922828834,-1303.6,0.00049315,120]
[357229386,1743922828862,-1303.6,0.00049315,120]
[357229387,1743922828888,-1303.6,0.00049315,120]
[357229388,1743922828916,-1303.6,0.00049315,120]
[357229389,1743922828942,-1303.6,0.00049315,120]
[357229390,1743922828968,-1303.6,0.00049315,120]
[357229391,1743922828994,-1303.6,0.00049315,120]
[357229392,1743922829020,-1303.6,0.00049315,120]
[357229393,1743922829046,-1303.71577293,0.00049315,120]
[357229394,1743922829077,-1250.25329881,0.00049317,120]
[357229395,1743922829104,-1250.25329881,0.00049417,120]
[357229396,1743922829131,-1250.25329881,0.00049517,120]
[357229397,1743922829158,-1250.25329881,0.00049617,120]
[357229398,1743922829185,-1250.25329881,0.00049717,120]
[357229399,1743922829211,-3286.37380553,0.000498,60]
[357229400,1743922829238,-467.34,0.000498,120]
[357229401,1743922829264,-353.97,0.000498,120]
[357229402,1743922829291,-3135.19571551,0.000498,120]
[357229403,1743922829317,-1250.25329881,0.00049817,120]
[357229404,1743922829345,-1250.25329881,0.00049917,120]
[357229405,1743922829373,-1000.0,0.00049999,120]
[357229406,1743922829400,-1224.23876193,0.00049999,50]
[357229407,1743922829427,-535.66887911,0.0005,120]
[357229408,1743922829456,-200.0,0.0005,120]
[357229409,1743922829482,-1336.0,0.0005,30]
[357229410,1743922829510,-2260.0,0.0005,120]
[357229411,1743922829536,-251.36,0.0005,120]
[357229412,1743922829563,-1063.0,0.0005,120]
[357229413,1743922829591,-223.16961068,0.0005,120]
[357229414,1743922829619,-1250.25329881,0.00050017,120]
[357229415,1743922829647,-1250.25329881,0.00050117,120]
[357229416,1743922829677,-1250.25329881,0.00050217,120]
[357229417,1743922829705,-1250.25329881,0.00050317,120]
[357229418,1743922829732,-1250.25329881,0.00050417,120]
[357229419,1743922829759,-1250.25329881,0.00050517,120]
[357229420,1743922829785,-401.0,0.00050574,120]
[357229421,1743922829812,-1250.25329881,0.00050617,120]
[357229422,1743922829838,-160.0,0.000507,120]
[357229423,1743922829866,-1250.25329881,0.00050717,120]
[357229424,1743922829892,-1250.25329881,0.00050817,120]
[357229425,1743922829918,-1250.25329881,0.00050917,120]
[357229426,1743922829944,-1000.0,0.00050999,120]
[357229427,1743922829969,-575.41115371,0.00051,120]
[357229428,1743922830090,-3372.07088068,0.00051,120]
[357229429,1743922830118,-3000.0,0.00051,85]
[357229430,1743922830145,-3000.0,0.0005101,85]
[357229431,1743922830171,-1250.25329881,0.00051017,120]
[357229432,1743922830197,-3000.0,0.0005102,85]
[357229433,1743922830225,-3000.0,0.0005103,85]
[357229434,1743922830251,-3000.0,0.0005104,85]
[357229435,1743922830279,-3000.0,0.0005105,85]
[357229436,1743922830306,-3000.0,0.0005106,85]
[357229437,1743922830332,-5940.840458,0.0005107,85]
[357229438,1743922830358,-1250.25329881,0.00051117,120]
[357229439,1743922830385,-1250.25329881,0.00051217,120]
[357229440,1743922830413,-1250.25329881,0.00051317,120]
[357229441,1743922830441,-1250.25,0.00051417,120]
[357229442,1743922830474,-992786.9051355,0.0005169,120]
[357229443,1743922830517,200.0,0.00045648,30]
[357229444,1743922830573,207.4,0.00045648,30]
[357229445,1743922830727,215.0738,0.00045648,30]
[357229446,1743922830757,223.0315306,0.00045648,30]
[357229447,1743922830805,231.28369723,0.00045648,30]
[357229448,1743922830840,239.84119403,0.00045648,30]
[357229449,1743922830869,3687.78640098,0.00045648,30]
[357229450,1743922830905,248.71531821,0.00045648,30]
[357229451,1743922832170,257.91778498,0.00045648,30]
[357229452,1743922832887,267.46074303,0.00045648,30]
[357229453,1743922833612,277.35679052,0.00045648,30]
[357229454,1743922834617,-2000000.0,0.0005169,120]
[357229455,1743922834907,287.61899177,0.00045648,30]
[357229456,1743922835671,298.26089446,0.00045648,30]
[357229457,1743922836404,309.29654756,0.00045648,30]
[357229458,1743922837063,320.74051982,0.00045648,30]
[357229459,1743922837723,332.60791905,0.00045648,30]
[357229460,1743922838382,344.91441206,0.00045648,30]
[357229461,1743922839119,357.6762453,0.00045648,30]
[357229462,1743922839752,370.91026638,0.00045648,30]
[357229463,1743922840446,384.63394623,0.00045648,30]
[357229464,1743922841106,384.63394623,0.00045648,30]
[357229465,1743922861426,-168.34,0.000295,30]
[357229466,1743922861470,-173.71,0.000295,30]
[357229467,1743922861520,-168.34,0.00033,30]
[357229468,1743922861569,-173.71,0.00033,30]
[357229469,1743922861614,-168.34,0.00036,30]
[357229470,1743922861656,-173.71,0.00036,30]
[357229471,1743922861701,-168.34,0.000393,30]
[357229472,1743922861742,-173.71,0.000393,30]
[357229473,1743922861783,-151.0,0.00042,120]
[357229474,1743922861824,-151.0,0.00042,120]
[357229475,1743922861864,-151.0,0.00043,120]
[357229476,1743922861908,-151.0,0.00043,120]
[357229477,1743922861950,-236.721408,0.00043,120]
[357229478,1743922861999,-151.0,0.00045683,120]
[357229479,1743922862044,-151.0,0.00045683,120]
[357229480,1743922862086,-151.0,0.00045683,120]
[357229481,1743922862127,-173.71,0.000463,30]
[357229482,1743922862169,-151.0,0.000463,120]
[357229483,1743922862215,-515.0,0.00051,120]
[357229484,1743922862260,-5661.1035652,0.0005169,120]
[357229485,1743922862301,-151.0,0.0005169,120]
[357229486,1743922862343,-1000.0,0.00051853,120]
[357229487,1743922862384,-1000.0,0.00051999,120]
[357229488,1743922862426,-200.0,0.00052,120]
[357229489,1743922862467,-1063.0,0.00052,120]
[357229490,1743922862509,-563.5430393,0.00052295,30]
[357229491,1743922862552,-563.9791657,0.00052295,30]
[357229492,1743922862595,-563.9791657,0.00052295,30]
[357229493,1743922862641,-557.3620436,0.00052295,30]
[357229494,1743922862684,-253.674,0.00052493,120]
[357229495,1743922862725,-100000.0,0.00053918,120]
[357229496,1743922862767,-200.0,0.00054,120]
[357229497,1743922862809,-1063.0,0.00054,120]
[357229498,1743922862850,-189.63,0.00054,30]
[357229499,1743922862892,-1438.52971495,0.00054,120]
[357229500,1743922862933,-435.34,0.00054,30]
[357229501,1743922862973,-153.00578933,0.00054794,120]
[357229502,1743922863015,-500.0,0.00054794,120]
[357229503,1743922863057,-500.0,0.00054794,120]
[357229504,1743922863099,-500.0,0.00054794,120]
[357229505,1743922863142,-500.0,0.00054794,120]
[357229506,1743922863187,-500.0,0.00054794,120]
[357229507,1743922863232,-500.0,0.00054794,120]
[357229508,1743922863277,-602.57922679,0.00054794,120]
[357229509,1743922868247,6700.88867009,0.00045683,30]
[357229510,1743922875485,189.76,0.00034,30]
[357229511,1743922875943,189.76,0.000472,30]
[357229512,1743922880106,401.0,0.00050364,120]
[357229513,1743922880622,401.0,0.00053364,120]
[357229514,1743922884113,2630.349,0.00053364,30]
[357229515,1743922884872,500.0,0.00046164,120]
[357229516,1743922886649,500.0,0.00046712,120]
[357229517,1743922888213,500.0,0.0004726,120]
[357229518,1743922889791,500.0,0.00047808,120]
[357229519,1743922891382,500.0,0.00048356,120]
[357229520,1743922893050,500.0,0.00048904,120]
[357229526,1743923005394,2714.12,0.00045683,120]
[357229527,1743923005663,2714.12,0.00045683,120]
[357229528,1743923005951,2714.12,0.00045683,120]
[357229529,1743923006196,2714.12,0.00045683,120]
[357229530,1743923006384,-180.7391086,0.00020215,2]
[357229531,1743923006453,2714.12,0.00045683,120]
[357229532,1743923006704,2714.12,0.00045683,120]
[357229533,1743923006956,2714.12,0.00045683,120]
[357229534,1743923007236,2714.12,0.00045683,120]
[357229535,1743923007507,2714.12,0.00045683,120]
[357229536,1743923007788,2714.12,0.00045683,120]
[357229537,1743923008059,2714.12,0.00045683,120]